Workbook

Sheet Start
B1: INVESTITIONS-TRACKER
B3: Mit dieser Vorlage für den Investitions-Tracker können Sie Ihre Investitionen und Kapitalverteilung nachverfolgen. Mit dem Excel-Datentyp "Aktien" wird Ihr Portfolio mit aktuellen Preisen und Details zu Ihren Anlagen auf dem neuesten Stand gehalten. Wie nachstehend beschrieben, gibt es zwei Arbeitsblätter, "Portfolio" und "Kapitalverteilung". Hinweis: Der Excel-Datentyp "Aktien" ist ein Feature ausschließlich für Office 365-Abonnements.
B5: Portfolio
B7: Fügen Sie Ihre Investitionen, Tickersymbole, Firmennamen oder Fonds-Namen über den Beispielen hinzu, oder fügen Sie weitere Zeilen hinzu. Wählen Sie eine Anlagenkategorie aus und geben Sie die Anzahl von Aktien ein. | L7: Klicken Sie auf die Schaltfläche "Spalte hinzufügen", um weitere Spalten wie das Tickersymbol oder den Austausch hinzuzufügen.
B24: Um die Daten zu aktualisieren, klicken Sie auf eine der Aktien. Klicken Sie auf der Registerkarte Daten in der Gruppe Abfragen und Verbindungen auf Alle aktualisieren, oder drücken Sie STRG +Alt + F5.
B26: Kapitalverteilung
B28: Ändern Sie Kategorie und mein Ziel, um sie an Ihre Portfolioziele anzupassen. | C28: Wenn eine Ressourcenkategorie den Schwellenwert überschreitet, werden die Beträge gelb hervorgehoben.

Sheet Portfolio
B1: INVESTITIONS-TRACKER
B3: Portfolio
B5: Firma | C5: Kategorie | D5: Teilungen | E5: Preis | F5: Änderung | G5: Änderung (%) | H5: Portfolio % | I5: Wert
C6: US-Aktien | D6: 1,200 | E6: =_FV(TablePortfolio[[#This Row],[Firma]],"Price") -> 235.81 € | F6: =_FV(TablePortfolio[[#This Row],[Firma]],"Change") -> -4.54 € | G6: =_FV(TablePortfolio[[#This Row],[Firma]],"Change (%)",TRUE) -> -1.89% | H6: =IFERROR(I6/SUBTOTAL(109,TablePortfolio[Wert]),"") -> 76% | I6: =D6 * E6 -> 282,972.00 €
C7: Obligationen | D7: 1,300 | E7: =_FV(TablePortfolio[[#This Row],[Firma]],"Price") -> 9.82 € | F7: =_FV(TablePortfolio[[#This Row],[Firma]],"Change") -> 0.09 € | G7: =_FV(TablePortfolio[[#This Row],[Firma]],"Change (%)",TRUE) -> 0.93% | H7: =IFERROR(I7/SUBTOTAL(109,TablePortfolio[Wert]),"") -> 3% | I7: 12,766.00 €
C8: Internationale Aktien | D8: 1,200 | E8: =_FV(TablePortfolio[[#This Row],[Firma]],"Price") -> 29.74 € | F8: =_FV(TablePortfolio[[#This Row],[Firma]],"Change") -> -0.13 € | G8: =_FV(TablePortfolio[[#This Row],[Firma]],"Change (%)",TRUE) -> -0.44% | H8: =IFERROR(I8/SUBTOTAL(109,TablePortfolio[Wert]),"") -> 10% | I8: 35,688.00 €
C9: Bargeld | D9: 10,000 | E9: =_FV(TablePortfolio[[#This Row],[Firma]],"Price") -> 1.00 € | F9: =_FV(TablePortfolio[[#This Row],[Firma]],"Change") -> 0 | G9: =_FV(TablePortfolio[[#This Row],[Firma]],"Change (%)",TRUE) -> 0.00% | H9: =IFERROR(I9/SUBTOTAL(109,TablePortfolio[Wert]),"") -> 3% | I9: 10,000.00 €
C10: Grundbesitz | D10: 125 | E10: =_FV(TablePortfolio[[#This Row],[Firma]],"Price") -> 123.48 € | F10: =_FV(TablePortfolio[[#This Row],[Firma]],"Change") -> -1.81 € | G10: =_FV(TablePortfolio[[#This Row],[Firma]],"Change (%)",TRUE) -> -1.44% | H10: =IFERROR(I10/SUBTOTAL(109,TablePortfolio[Wert]),"") -> 4% | I10: 15,435.00 €
C11: Rohstoffe | D11: 100 | E11: =_FV(TablePortfolio[[#This Row],[Firma]],"Price") -> 177.08 € | F11: =_FV(TablePortfolio[[#This Row],[Firma]],"Change") -> -0.51 € | G11: =_FV(TablePortfolio[[#This Row],[Firma]],"Change (%)",TRUE) -> -0.29% | H11: =IFERROR(I11/SUBTOTAL(109,TablePortfolio[Wert]),"") -> 5% | I11: 17,708.00 €
B12: ERGEBNIS | I12: =IFERROR(SUBTOTAL(109,TablePortfolio[Wert]), "") -> 374,569.00 €

Sheet Vermögensverteilung
B1: INVESTITIONS-TRACKER
B3: Kapitalverteilung
B19: Kategorie | C19: Mein Ziel | D19: Tatsächlich | E19: Differenz | F19: Schwellenwert | G19: Wert
B20: US-Aktien | C20: 55% | D20: =IFERROR(G20/SUBTOTAL(109,TableAssetAllocation[Wert]),"") -> 76% | E20: =D20 - C20 -> 20.5% | F20: =MIN(5%, $C20 * 25%) -> 5% | G20: =SUMIF(TablePortfolio[Kategorie], B20, TablePortfolio[Wert]) -> 282,972.00 €
B21: Internationale Aktien | C21: 20% | D21: =IFERROR(G21/SUBTOTAL(109,TableAssetAllocation[Wert]),"") -> 10% | E21: -10.5% | F21: 5% | G21: =SUMIF(TablePortfolio[Kategorie], B21, TablePortfolio[Wert]) -> 35,688.00 €
B22: Obligationen | C22: 10% | D22: =IFERROR(G22/SUBTOTAL(109,TableAssetAllocation[Wert]),"") -> 3% | E22: -6.6% | F22: 3% | G22: =SUMIF(TablePortfolio[Kategorie], B22, TablePortfolio[Wert]) -> 12,766.00 €
B23: Bargeld | C23: 5% | D23: =IFERROR(G23/SUBTOTAL(109,TableAssetAllocation[Wert]),"") -> 3% | E23: -2.3% | F23: 1% | G23: =SUMIF(TablePortfolio[Kategorie], B23, TablePortfolio[Wert]) -> 10,000.00 €
B24: Grundbesitz | C24: 5% | D24: =IFERROR(G24/SUBTOTAL(109,TableAssetAllocation[Wert]),"") -> 4% | E24: -0.9% | F24: 1% | G24: =SUMIF(TablePortfolio[Kategorie], B24, TablePortfolio[Wert]) -> 15,435.00 €
B25: Rohstoffe | C25: 5% | D25: =IFERROR(G25/SUBTOTAL(109,TableAssetAllocation[Wert]),"") -> 5% | E25: -0.3% | F25: 1% | G25: =SUMIF(TablePortfolio[Kategorie], B25, TablePortfolio[Wert]) -> 17,708.00 €
